fUST/lending_fUST_20250605
["ID","MTS","AMOUNT","RATE_DAILY","PERIOD"]
[364462262,1749107450791,-500.0,0.00020979,2]
[364462264,1749107450801,-500.0,0.00020979,2]
[364462266,1749107450811,-500.0,0.00020979,2]
[364462268,1749107450820,-500.0,0.00020979,2]
[364462269,1749107450830,-500.0,0.00020979,2]
[364462272,1749107450840,-500.0,0.00020979,2]
[364462273,1749107450849,-500.0,0.00020979,2]
[364462275,1749107450859,-500.0,0.00020979,2]
[364462278,1749107450868,-500.0,0.00020979,2]
[364462279,1749107450879,-500.0,0.00020979,2]
[364462281,1749107450889,-500.0,0.00020979,2]
[364462283,1749107450899,-500.0,0.00020979,2]
[364462285,1749107450909,-500.0,0.00020979,2]
[364462288,1749107450919,-500.0,0.00020979,2]
[364462289,1749107450929,-500.0,0.00020979,2]
[364462292,1749107450939,-500.0,0.00020979,2]
[364462294,1749107450950,-500.0,0.00020979,2]
[364462295,1749107450960,-500.0,0.00020979,2]
[364462297,1749107450970,-500.0,0.00020979,2]
[364462299,1749107450980,-500.0,0.00020979,2]
[364462301,1749107450990,-500.0,0.00020979,2]
[364462303,1749107451000,-500.0,0.00020979,2]
[364462305,1749107451010,-500.0,0.00020979,2]
[364462307,1749107451020,-500.0,0.00020979,2]
[364462309,1749107451030,-500.0,0.00020979,2]
[364462311,1749107451040,-500.0,0.00020979,2]
[364462313,1749107451050,-500.0,0.00020979,2]
[364462315,1749107451060,-500.0,0.00020979,2]
[364462317,1749107451070,-550.0,0.00020979,2]
[364462319,1749107451080,-500.0,0.00020979,2]
[364462321,1749107451090,-341.75570332,0.00020979,2]
[364462323,1749107451100,-500.0,0.00020979,2]
[364462325,1749107451110,-500.0,0.00020979,2]
[364462327,1749107451120,-500.0,0.00020979,2]
[364462329,1749107451131,-500.0,0.00020979,2]
[364462331,1749107451141,-500.0,0.00020979,2]
[364462333,1749107451151,-500.0,0.00020979,2]
[364462335,1749107451160,-500.0,0.00020979,2]
[364462337,1749107451170,-500.0,0.00020979,2]
[364462339,1749107451183,-500.0,0.00020979,2]
[364462342,1749107451193,-500.0,0.00020979,2]
[364462344,1749107451205,-500.0,0.00020979,2]
[364462346,1749107451216,-500.0,0.00020979,2]
[364462348,1749107451226,-500.0,0.00020979,2]
[364462350,1749107451237,-500.0,0.00020979,2]
[364462352,1749107451248,-500.0,0.00020979,2]
[364462354,1749107451258,-500.0,0.00020979,2]
[364462356,1749107451268,-500.0,0.00020979,2]
[364462357,1749107451278,-500.0,0.00020979,2]
[364462359,1749107451288,-500.0,0.00020979,2]
[364462361,1749107451299,-499.61010251,0.00020979,2]
[364462365,1749107451326,-0.38989749,0.00020979,2]
[364462367,1749107451337,-387.74647488,0.00020979,2]
[364462537,1749107453203,-258.75862943,0.00016634,2]
[364465671,1749107542019,299.455838,0.00013699,2]
[364465676,1749107691025,1517.0,0.00025,120]
[364465677,1749107873368,205.22485589,0.00025,120]
[364465679,1749108103492,211.3468755,0.00015865,2]
[364465680,1749108262704,434.2076977,0.00015806,2]
[364465681,1749108308203,1742.1201225,0.00015806,2]
[364465687,1749108390406,200.0,0.000156,2]
[364465749,1749108632274,-986.3209597,0.00016697,2]
[364465750,1749108632289,-928.8590403,0.00016697,2]
[364465751,1749108632298,-255.0,0.000168,2]
[364465752,1749108632308,-255.0,0.00016801,2]
[364465753,1749108632317,-255.0,0.00016802,2]
[364465754,1749108632326,-255.0,0.00016803,2]
[364465755,1749108632336,-255.0,0.00016804,2]
[364465756,1749108632345,-255.0,0.00016805,2]
[364465757,1749108632355,-255.0,0.00016806,2]
[364465758,1749108632364,-430.0,0.00016806,2]
[364465759,1749108632373,-517.65738753,0.00016806,2]
[364465760,1749108632383,-430.0,0.00016806,2]
[364465761,1749108632392,-430.0,0.00016806,2]
[364465763,1749108632401,-303.4994681,0.00016806,2]
[364465788,1749108638149,-126.5005319,0.00016806,2]
[364465790,1749108638161,-430.83539387,0.00016806,2]
[364465792,1749108638174,-430.0,0.00016806,2]
[364465794,1749108638185,-158.24097865,0.00016806,2]
[364465803,1749108638285,-271.75902135,0.00016806,2]
[364465805,1749108638296,-430.0,0.00016806,2]
[364465807,1749108638307,-430.0,0.00016806,2]
[364465809,1749108638318,-430.0,0.00016806,2]
[364465811,1749108638329,-440.0,0.00016806,2]
[364465813,1749108638340,-430.0,0.00016806,2]
[364465815,1749108638350,-401.66338447,0.00016806,2]
[364465817,1749108638361,-430.0,0.00016806,2]
[364465819,1749108638373,-50000.0,0.00016806,2]
[364465821,1749108638388,-255.0,0.00016807,2]
[364465823,1749108638399,-300.0,0.00016807,2]
[364465825,1749108638414,-300.0,0.00016807,2]
[364465827,1749108638430,-300.0,0.00016807,2]
[364465829,1749108638442,-1200.0,0.00016807,2]
[364465831,1749108638452,-255.0,0.00016808,2]
[364465833,1749108638463,-440.0,0.00016808,2]
[364465835,1749108638474,-440.0,0.00016808,2]
[364465837,1749108638485,-440.0,0.00016808,2]
[364465839,1749108638496,-222.1971762,0.00016808,2]
[364465841,1749108638508,-440.0,0.00016808,2]
[364465843,1749108638519,-255.0,0.00016809,2]
[364465845,1749108638530,-255.0,0.0001681,2]
[364465847,1749108638539,-255.0,0.00016811,2]
[364465864,1749108638704,-255.0,0.00016812,2]
[364465866,1749108638722,-255.0,0.00016813,2]
[364465868,1749108638732,-256.45560052,0.00016814,2]
[364465870,1749108638741,-150.86195911,0.00016932,2]
[364465872,1749108638751,-410.53567467,0.00017031,2]
[364465874,1749108638760,-440.0,0.00017031,2]
[364465876,1749108638770,-440.0,0.00017031,2]
[364465877,1749108638779,-440.0,0.00017031,2]
[364465879,1749108638788,-440.0,0.00017031,2]
[364465881,1749108638797,-440.0,0.00017031,2]
[364465883,1749108638807,-440.0,0.00017031,2]
[364465885,1749108638816,-440.0,0.00017031,2]
[364465887,1749108638825,-500.0,0.00017031,2]
[364465889,1749108638834,-500.0,0.00017031,2]
[364465890,1749108638843,-500.0,0.00017031,2]
[364465892,1749108638853,-430.0,0.00017032,2]
[364465894,1749108638862,-440.0,0.00017032,2]
[364465896,1749108638871,-430.0,0.00017032,2]
[364465898,1749108638880,-430.0,0.00017032,2]
[364465900,1749108638889,-430.0,0.00017032,2]
[364465902,1749108638898,-440.0,0.00017032,2]
[364465904,1749108638908,-430.0,0.00017032,2]
[364465905,1749108638917,-430.0,0.00017032,2]
[364465907,1749108638926,-430.0,0.00017032,2]
[364465909,1749108638935,-440.0,0.00017032,2]
[364465911,1749108638945,-431.75866359,0.00017032,2]
[364465913,1749108638954,-430.0,0.00017032,2]
[364465915,1749108638963,-431.54209365,0.00017032,2]
[364465917,1749108638975,-430.0,0.00017032,2]
[364465918,1749108638985,-429.71237859,0.00017032,2]
[364465920,1749108638994,-430.0,0.00017032,2]
[364465922,1749108639003,-343.67077717,0.00017032,2]
[364465924,1749108639013,-440.0,0.00017032,2]
[364465926,1749108639023,-440.0,0.00017032,2]
[364465928,1749108639032,-430.0,0.00017032,2]
[364465930,1749108639041,-336.4440577,0.00017032,2]
[364465932,1749108639050,-440.0,0.00017032,2]
[364465933,1749108639059,-440.0,0.00017032,2]
[364465935,1749108639068,-430.0,0.00017032,2]
[364465937,1749108639078,-440.0,0.00017032,2]
[364465939,1749108639087,-430.0,0.00017032,2]
[364465941,1749108639096,-440.0,0.00017032,2]
[364465943,1749108639106,-500.0,0.00017032,2]
[364465945,1749108639115,-500.0,0.00017032,2]
[364465946,1749108639125,-430.0,0.00017032,2]
[364465948,1749108639134,-430.0,0.00017032,2]
[364465950,1749108639144,-440.0,0.00017032,2]
[364465952,1749108639153,-430.0,0.00017032,2]
[364465954,1749108639162,-430.0,0.00017032,2]
[364465956,1749108639171,-440.0,0.00017032,2]
[364465958,1749108639181,-440.0,0.00017032,2]
[364465959,1749108639191,-430.0,0.00017032,2]
[364465961,1749108639200,-430.0,0.00017032,2]
[364465963,1749108639209,-430.0,0.00017032,2]
[364465965,1749108639219,-440.0,0.00017032,2]
[364465967,1749108639229,-430.0,0.00017032,2]
[364465969,1749108639238,-430.0,0.00017032,2]
[364465971,1749108639248,-440.0,0.00017032,2]
[364465973,1749108639257,-430.0,0.00017032,2]
[364465974,1749108639267,-430.0,0.00017032,2]
[364465976,1749108639276,-430.0,0.00017032,2]
[364465978,1749108639286,-430.0,0.00017032,2]
[364465980,1749108639296,-430.0,0.00017032,2]
[364465982,1749108639305,-440.0,0.00017032,2]
[364465983,1749108639315,-440.0,0.00017032,2]
[364465985,1749108639325,-440.0,0.00017032,2]
[364465987,1749108639334,-430.0,0.00017032,2]
[364465989,1749108639344,-465.0,0.00017032,2]
[364465991,1749108639353,-447.75,0.00017032,2]
[364465993,1749108639363,-440.0,0.00017032,2]
[364465995,1749108639373,-440.0,0.00017032,2]
[364465996,1749108639382,-440.0,0.00017032,2]
[364465998,1749108639393,-440.0,0.00017032,2]
[364466000,1749108639403,-440.0,0.00017032,2]
[364466002,1749108639413,-440.0,0.00017032,2]
[364466004,1749108639423,-454.72,0.00017032,2]
[364466005,1749108639433,-430.0,0.00017032,2]
[364466007,1749108639443,-440.0,0.00017032,2]
[364466009,1749108639453,-440.0,0.00017032,2]
[364466011,1749108639463,-420.0,0.00017032,2]
[364466013,1749108639475,-440.0,0.00017032,2]
[364466015,1749108639485,-440.0,0.00017032,2]
[364466017,1749108639494,-440.0,0.00017032,2]
[364466019,1749108639504,-440.0,0.00017082,2]
[364466021,1749108639514,-440.0,0.00017082,2]
[364466022,1749108639523,-440.0,0.00017305,2]
[364466024,1749108639533,-440.0,0.00017305,2]
[364466026,1749108639543,-168.79,0.00017305,2]
[364466028,1749108639552,-500.0,0.00017305,2]
[364466030,1749108639562,-296.40932798,0.00017306,2]
[364466032,1749108639573,-340.0,0.00017306,2]
[364466034,1749108639583,-381.18321464,0.00017306,2]
[364466036,1749108639593,-454.72,0.00017306,2]
[364466038,1749108639603,-440.0,0.00017356,2]
[364466040,1749108639613,-454.00775565,0.00017356,2]
[364466041,1749108639623,-440.0,0.00017579,2]
[364466043,1749108639633,-440.0,0.00017579,2]
[364466045,1749108639643,-500.0,0.00017579,2]
[364466047,1749108639653,-440.0,0.0001758,2]
[364466049,1749108639663,-440.0,0.0001758,2]
[364466051,1749108639672,-430.0,0.0001758,2]
[364466053,1749108639682,-440.0,0.0001758,2]
[364466055,1749108639691,-440.0,0.0001758,2]
[364466057,1749108639700,-430.0,0.0001758,2]
[364466059,1749108639710,-320.98718604,0.0001758,2]
[364466061,1749108639721,-430.0,0.0001758,2]
[364466063,1749108639731,-430.0,0.0001758,2]
[364466064,1749108639740,-430.0,0.0001758,2]
[364466066,1749108639749,-432.24396179,0.0001758,2]
[364466069,1749108639759,-430.0,0.0001758,2]
[364466072,1749108639768,-430.0,0.0001758,2]
[364466074,1749108639778,-559.79485408,0.0001758,2]
[364466076,1749108639787,-395.88184264,0.0001758,2]
[364466078,1749108639797,-574.44784049,0.0001758,2]
[364466080,1749108639807,-430.0,0.0001758,2]
[364466081,1749108639816,-337.32748788,0.0001758,2]
[364466083,1749108639826,-440.0,0.0001758,2]
[364466085,1749108639836,-430.0,0.0001758,2]
[364466087,1749108639845,-440.0,0.0001758,2]
[364466089,1749108639854,-430.0,0.0001758,2]
[364466091,1749108639864,-539.98058387,0.0001758,2]
[364466092,1749108639873,-430.0,0.0001758,2]
[364466094,1749108639883,-430.0,0.0001758,2]
[364466096,1749108639893,-430.0,0.0001758,2]
[364466098,1749108639902,-430.0,0.0001758,2]
[364466100,1749108639911,-430.0,0.0001758,2]
[364466102,1749108639921,-431.8346878,0.0001758,2]
[364466104,1749108639930,-439.55421076,0.0001758,2]
[364466106,1749108639940,-400.0,0.0001758,2]
[364466108,1749108639949,-440.0,0.0001758,2]
[364466109,1749108639959,-430.0,0.0001758,2]
[364466111,1749108639969,-171.50939695,0.0001758,2]
[364466113,1749108639979,-509.21437107,0.0001758,2]
[364466115,1749108639989,-430.0,0.0001758,2]
[364466117,1749108639998,-440.0,0.0001758,2]
[364466119,1749108640007,-440.0,0.0001758,2]
[364466121,1749108640016,-440.0,0.0001758,2]
[364466123,1749108640025,-383.82908698,0.0001758,2]
[364466124,1749108640035,-430.0,0.0001758,2]
[364466126,1749108640045,-430.51694996,0.0001758,2]
[364466128,1749108640054,-440.0,0.0001758,2]
[364466130,1749108640064,-440.0,0.0001758,2]
[364466132,1749108640073,-440.0,0.0001758,2]
[364466134,1749108640084,-430.0,0.0001758,2]
[364466136,1749108640094,-432.85663331,0.0001758,2]
[364466138,1749108640103,-430.0,0.0001758,2]
[364466140,1749108640113,-440.0,0.0001758,2]
[364466142,1749108640122,-440.0,0.0001758,2]
[364466144,1749108640132,-349.73989259,0.0001758,2]
[364466145,1749108640141,-430.0,0.0001758,2]
[364466147,1749108640150,-440.0,0.0001758,2]
[364466149,1749108640160,-305.48714229,0.0001758,2]
[364466151,1749108640170,-440.0,0.0001758,2]
[364466153,1749108640179,-402.02550285,0.0001758,2]
[364466155,1749108640189,-440.0,0.0001758,2]
[364466157,1749108640198,-187.92161332,0.0001758,2]
[364466159,1749108640207,-430.0,0.0001758,2]
[364466161,1749108640216,-464.60656377,0.0001758,2]
[364466162,1749108640226,-430.0,0.0001758,2]
[364466164,1749108640235,-430.0,0.0001758,2]
[364466166,1749108640244,-430.0,0.0001758,2]
[364466168,1749108640254,-430.0,0.0001758,2]
[364466170,1749108640263,-431.36424493,0.0001758,2]
[364466172,1749108640272,-196.80093776,0.0001758,2]
[364466174,1749108640282,-430.0,0.0001758,2]
[364466176,1749108640291,-430.0,0.0001758,2]
[364466178,1749108640302,-188.59411248,0.0001758,2]
[364466179,1749108640311,-430.0,0.0001758,2]
[364466181,1749108640321,-430.0,0.0001758,2]
[364466183,1749108640331,-428.54314081,0.0001758,2]
[364466185,1749108640340,-430.0,0.0001758,2]
[364466187,1749108640349,-430.0,0.0001758,2]
[364466189,1749108640359,-430.0,0.0001758,2]
[364466191,1749108640368,-430.0,0.0001758,2]
[364466193,1749108640378,-421.92370843,0.0001758,2]
[364466195,1749108640388,-377.81965294,0.0001758,2]
[364466197,1749108640398,-424.18183585,0.0001758,2]
[364466198,1749108640408,-500.0,0.0001758,2]
[364466200,1749108640418,-500.0,0.0001758,2]
[364466202,1749108640427,-430.0,0.0001758,2]
[364466204,1749108640438,-430.0,0.0001758,2]
[364466206,1749108640448,-430.0,0.0001758,2]
[364466208,1749108640458,-215.22901585,0.0001758,2]
[364466210,1749108640467,-430.0,0.0001758,2]
[364466212,1749108640478,-430.0,0.0001758,2]
[364466214,1749108640488,-579.09757199,0.0001758,2]
[364466215,1749108640498,-430.0,0.0001758,2]
[364466217,1749108640508,-430.0,0.0001758,2]
[364466219,1749108640517,-430.0,0.0001758,2]
[364466221,1749108640527,-430.0,0.0001758,2]
[364466223,1749108640536,-430.0,0.0001758,2]
[364466225,1749108640546,-430.0,0.0001758,2]
[364466227,1749108640555,-430.0,0.0001758,2]
[364466229,1749108640565,-430.0,0.0001758,2]
[364466231,1749108640575,-430.0,0.0001758,2]
[364466233,1749108640584,-430.0,0.0001758,2]
[364466235,1749108640594,-430.0,0.0001758,2]
[364466236,1749108640603,-422.67270731,0.0001758,2]
[364466238,1749108640613,-431.13798223,0.0001758,2]
[364466240,1749108640623,-430.0,0.0001758,2]
[364466242,1749108640632,-440.0,0.0001758,2]
[364466244,1749108640642,-440.0,0.0001758,2]
[364466246,1749108640652,-430.0,0.0001758,2]
[364466248,1749108640661,-430.0,0.0001758,2]
[364466250,1749108640671,-430.0,0.0001758,2]
[364466252,1749108640681,-430.0,0.0001758,2]
[364466254,1749108640691,-430.0,0.0001758,2]
[364466256,1749108640701,-423.4845344,0.0001758,2]
[364466258,1749108640710,-440.0,0.0001758,2]
[364466260,1749108640719,-371.66530741,0.0001758,2]
[364466262,1749108640730,-326.99122783,0.0001758,2]
[364466264,1749108640739,-430.0,0.0001758,2]
[364466265,1749108640748,-431.95489313,0.0001758,2]
[364466267,1749108640757,-402.52462837,0.0001758,2]
[364466269,1749108640766,-430.0,0.0001758,2]
[364466271,1749108640775,-430.0,0.0001758,2]
[364466273,1749108640784,-430.0,0.0001758,2]
[364466275,1749108640794,-431.24892883,0.0001758,2]
[364466277,1749108640803,-500.0,0.0001758,2]
[364466279,1749108640812,-440.0,0.0001758,2]
[364466281,1749108640821,-430.0,0.0001758,2]
[364466282,1749108640830,-371.29344144,0.0001758,2]
[364466283,1749108640839,-433.31464369,0.0001758,2]
[364466284,1749108640848,-430.0,0.0001758,2]
[364466285,1749108640857,-430.14342365,0.0001758,2]
[364466286,1749108640866,-259.82565711,0.0001758,2]
[364466287,1749108640874,-430.0,0.0001758,2]
[364466288,1749108640883,-430.0,0.0001758,2]
[364466289,1749108640892,-440.0,0.0001758,2]
[364466290,1749108640901,-470.0,0.0001758,2]
[364466291,1749108640912,-430.0,0.0001758,2]
[364466292,1749108640922,-165.28883966,0.0001758,2]
[364466293,1749108640931,-430.0,0.0001758,2]
[364466294,1749108640940,-430.0,0.0001758,2]
[364466295,1749108640949,-736.2,0.0001758,2]
[364466296,1749108640958,-430.0,0.0001758,2]
[364466297,1749108640968,-374.55946187,0.0001758,2]
[364466298,1749108640977,-412.51538325,0.0001758,2]
[364466299,1749108640986,-430.0,0.0001758,2]
[364466300,1749108640995,-430.0,0.0001758,2]
[364466301,1749108641004,-430.0,0.0001758,2]
[364466302,1749108641013,-430.0,0.0001758,2]
[364466303,1749108641022,-430.0,0.0001758,2]
[364466304,1749108641031,-430.0,0.0001758,2]
[364466305,1749108641040,-430.0,0.0001758,2]
[364466306,1749108641049,-430.0,0.0001758,2]
[364466307,1749108641058,-512.64,0.0001758,2]
[364466308,1749108641066,-430.0,0.0001758,2]
[364466309,1749108641075,-430.0,0.0001758,2]
[364466310,1749108641085,-430.0,0.0001758,2]
[364466311,1749108641094,-430.0,0.0001758,2]
[364466312,1749108641103,-430.0,0.0001758,2]
[364466313,1749108641112,-435.97321396,0.0001758,2]
[364466314,1749108641121,-430.0,0.0001758,2]
[364466315,1749108641129,-430.0,0.0001758,2]
[364466316,1749108641138,-430.0,0.0001758,2]
[364466317,1749108641147,-430.0,0.0001758,2]
[364466318,1749108641156,-440.0,0.0001758,2]
[364466319,1749108641165,-403.01582946,0.0001758,2]
[364466320,1749108641174,-450.84771017,0.0001758,2]
[364466321,1749108641183,-430.0,0.0001758,2]
[364466322,1749108641192,-430.0,0.0001758,2]
[364466323,1749108641201,-430.0,0.0001758,2]
[364466324,1749108641210,-430.0,0.0001758,2]
[364466325,1749108641219,-430.0,0.0001758,2]
[364466326,1749108641229,-430.0,0.0001758,2]
[364466327,1749108641238,-430.0,0.0001758,2]
[364466329,1749108641247,-454.72,0.0001758,2]
[364466330,1749108641257,-430.0,0.0001758,2]
[364466331,1749108641266,-1000.0,0.0001758,2]
[364466333,1749108641276,-430.0,0.0001758,2]
[364466334,1749108641286,-450.0,0.0001758,2]
[364466336,1749108641295,-430.0,0.0001758,2]
[364466337,1749108641305,-430.0,0.0001758,2]
[364466339,1749108641315,-430.93305449,0.0001758,2]
[364466341,1749108641324,-430.0,0.0001758,2]
[364466343,1749108641333,-430.0,0.0001758,2]
[364466345,1749108641343,-430.0,0.0001758,2]
[364466347,1749108641353,-430.0,0.0001758,2]
[364466349,1749108641362,-430.0,0.0001758,2]
[364466351,1749108641371,-430.80248582,0.0001758,2]
[364466353,1749108641381,-430.0,0.0001758,2]
[364466355,1749108641391,-430.0,0.0001758,2]
[364466357,1749108641401,-435.44802943,0.0001758,2]
[364466359,1749108641410,-370.71815793,0.0001758,2]
[364466362,1749108641421,-430.0,0.0001758,2]
[364466364,1749108641430,-374.26656273,0.0001758,2]
[364466365,1749108641439,-430.0,0.0001758,2]
[364466367,1749108641448,-430.0,0.0001758,2]
[364466369,1749108641458,-430.0,0.0001758,2]
[364466371,1749108641468,-483.38,0.0001758,2]
[364466374,1749108641481,-440.0,0.0001763,2]
[364466376,1749108641491,-440.0,0.00017853,2]
[364466378,1749108641501,-440.0,0.00017853,2]
[364466380,1749108641510,-440.0,0.00017854,2]
[364466382,1749108641520,-308.49,0.00017854,2]
[364466383,1749108641529,-440.0,0.00017854,2]
[364466386,1749108641539,-736.2,0.00017854,2]
[364466387,1749108641549,-440.0,0.00017854,2]
[364466390,1749108641558,-454.72,0.00017854,2]
[364466391,1749108641568,-656.90658133,0.000179,2]
[364466393,1749108641577,-440.0,0.00017904,2]
[364466395,1749108641587,-151.0,0.00018033,2]
[364466397,1749108641596,-151.0,0.00018033,2]
[364466399,1749108641606,-440.0,0.00018127,2]
[364466402,1749108641616,-440.0,0.00018127,2]
[364466404,1749108641625,-500.0,0.00018127,2]
[364466406,1749108641635,-440.0,0.00018128,2]
[364466408,1749108641644,-440.0,0.00018128,2]
[364466410,1749108641654,-736.2,0.00018128,2]
[364466412,1749108641664,-552.38,0.00018128,2]
[364466414,1749108641673,-454.72,0.00018128,2]
[364466416,1749108641683,-150.8619591,0.00018131,2]
[364466418,1749108641692,-656.9065811,0.00018141,2]
[364466420,1749108641701,-440.0,0.00018178,2]
[364466422,1749108641710,-3830.36,0.00018215,2]
[364466424,1749108641720,-978.12975456,0.00018302,2]
[364466425,1749108641730,-500.0,0.00018306,2]
[364466427,1749108641739,-656.9065811,0.00018383,2]
[364466430,1749108641749,-440.0,0.00018401,2]
[364466431,1749108641758,-440.0,0.00018401,2]
[364466434,1749108641768,-440.0,0.00018402,2]
[364466436,1749108641778,-440.0,0.00018402,2]
[364466437,1749108641787,-736.2,0.00018402,2]
[364466450,1749108641796,-454.72,0.00018402,2]
[364466452,1749108641914,-580.48416854,0.00018452,2]
[364466454,1749108641924,-654.0,0.00018452,2]
[364466457,1749108641935,-656.9065811,0.00018624,2]
[364466458,1749108641944,-440.0,0.00018675,2]
[364466460,1749108641955,-440.0,0.00018675,2]
[364466463,1749108641965,-440.0,0.00018676,2]
[364466465,1749108641976,-440.0,0.00018676,2]
[364466467,1749108641985,-736.2,0.00018676,2]
[364466469,1749108641994,-454.72,0.00018676,2]
[364466471,1749108642004,-656.9065811,0.00018866,2]
[364466473,1749108642014,-440.0,0.00018949,2]
[364466475,1749108642023,-440.0,0.00018949,2]
[364466477,1749108642033,-440.0,0.0001895,2]
[364466479,1749108642043,-206.410368,0.0001895,2]
[364466481,1749108642052,-736.2,0.0001895,2]
[364466483,1749108642061,-454.72,0.0001895,2]
[364466485,1749108642071,-656.9065811,0.00019107,2]
[364466486,1749108642080,-440.0,0.00019178,2]
[364466488,1749108642090,-440.0,0.00019178,2]
[364466491,1749108642101,-440.0,0.00019178,2]
[364466493,1749108642111,-440.0,0.00019178,2]
[364466495,1749108642120,-440.0,0.00019178,2]
[364466497,1749108642130,-440.0,0.00019178,2]
[364466499,1749108642139,-440.0,0.00019178,2]
[364466501,1749108642149,-161.41285,0.00019178,2]
[364466503,1749108642158,-978.12975453,0.00019202,2]
[364466505,1749108642169,-440.0,0.00019223,2]
[364466507,1749108642179,-440.0,0.00019223,2]
[364466509,1749108642189,-440.0,0.00019224,2]
[364466511,1749108642198,-736.2,0.00019224,2]
[364466513,1749108642208,-454.72,0.00019224,2]
[364466515,1749108642217,-150.8619591,0.00019329,2]
[364466517,1749108642228,-656.9065811,0.00019348,2]
[364466519,1749108642237,-180.68956968,0.0001941,2]
[364466521,1749108642247,-440.0,0.00019497,2]
[364466523,1749108642257,-440.0,0.00019497,2]
[364466525,1749108642267,-440.0,0.00019498,2]
[364466527,1749108642276,-736.2,0.00019498,2]
[364466529,1749108642286,-454.72,0.00019498,2]
[364466531,1749108642296,-52728.29704175,0.000195,2]
[364466542,1749108642392,-4377.5873635,0.000195,2]
[364466544,1749108642408,-1955.56797099,0.000195,2]
[364466549,1749108642442,-430.0,0.00016806,2]
[364466551,1749108642451,-381.92977104,0.00016806,2]
[364466553,1749108642461,-5582.46022896,0.000195,2]
[364466566,1749108642576,300.796266,0.00013699,2]
[364466784,1749108644405,-430.0,0.00016806,2]
[364466786,1749108644415,-430.0,0.00016806,2]
[364466788,1749108644424,-243.49222765,0.00016808,2]
[364471908,1749108845116,12982.0,0.00025,120]
[364471911,1749109107748,5015.36970804,0.00025,120]
[364471912,1749109226583,-258.75862943,0.0001624,2]
[364471913,1749109241644,-227.08067549,0.0001624,2]
[364471914,1749109257245,-237.54455244,0.0001624,2]
[364471915,1749109260005,-237.62205689,0.0001624,2]
[364471916,1749109262062,-285.15117557,0.0001624,2]
[364471917,1749109264313,-212.51539187,0.0001624,2]
[364471918,1749109288648,-247.73682323,0.0001624,2]
[364471919,1749109322751,1957.47123994,0.00015787,2]
[364471920,1749109322775,1158.09948706,0.00015787,2]
[364471948,1749109406639,174.27462215,0.00016,2]
[364472195,1749109769802,252.6291512,0.0001574,2]
[364472200,1749109792434,5000.0,0.00016,2]
[364472219,1749109838268,-5000.0,0.00016403,2]
[364472220,1749109838278,-300.0,0.00016569,2]
[364472221,1749109838288,-300.0,0.00016569,2]
[364472222,1749109838297,-300.0,0.00016569,2]
[364472223,1749109838308,-300.0,0.00016569,2]
[364472225,1749109838317,-524.46294816,0.0001657,2]
[364472228,1749109838455,-8378.62033204,0.0001657,2]
[364472232,1749109838465,-1956.19,0.00016649,2]
[364472233,1749109838474,-440.0,0.00016803,2]
[364472234,1749109838483,-440.0,0.00016803,2]